bitfinex-derivatives/quotes_ETHF0:USTF0_20250410
["timestamp","ask_amount","ask_price","bid_price","bid_amount"]
[1744265657649,3.91227,1621.1,1621.0,1.23415]
[1744265658256,2.6782,1621.1,1621.0,1.23415]
[1744265658752,3.91227,1621.1,1621.0,1.23415]
[1744265658952,2.6782,1621.1,1620.8,1.0891]
[1744265659256,1.23422,1620.9,1620.8,1.23424]
[1744265659958,2.2921,1621.0,1620.9,1.23422]
[1744265660558,1.23422,1620.9,1620.8,5.0]
[1744265660957,1.23422,1620.9,1620.8,6.23425]
[1744265661559,1.23422,1620.9,1620.8,1.23425]
[1744265662562,5.93214977,1621.1,1621.0,1.23415]
[1744265662956,7.16621977,1621.1,1621.0,1.23415]
[1744265663764,9.57499466,1621.1,1621.0,1.23415]
[1744265664663,9.57501466,1621.1,1621.0,1.23415]
[1744265664864,1.23415,1621.0,1620.9,2.2907]
[1744265665261,8.34092466,1621.1,1620.8,1.23424]
[1744265665262,1.23422,1620.9,1620.8,1.23424]
[1744265666061,2.27939,1621.0,1620.9,1.23422]
[1744265668571,1.23422,1620.9,1620.8,2.83834]
[1744265669068,2.2794,1621.0,1620.9,1.23422]
[1744265669966,1.23422,1620.9,1620.8,7.83835]
[1744265670160,5.40722,1620.9,1620.8,6.23425]
[1744265670361,5.40722,1620.9,1620.8,1.23425]
[1744265670967,1.2343,1620.8,1620.7,1.10575783]
[1744265671167,5.6036,1620.8,1620.7,0.00925783]
[1744265671368,10.6036,1620.8,1620.7,0.00925783]
[1744265671663,1.2346,1620.4,1620.3,9.62713969]
[1744265671871,8.6154,1620.4,1620.3,9.62713969]
[1744265672164,13.6154,1620.4,1620.3,9.62713969]
[1744265672755,8.6154,1620.4,1620.3,9.62713969]
[1744265673672,10.2687,1620.4,1620.3,9.62713969]
[1744265674862,4.173,1620.4,1620.3,10.86181969]
[1744265675061,4.44214,1620.8,1620.3,21.85081969]
[1744265675270,8.61514,1620.8,1620.7,1.23438]
[1744265675675,10.21184,1620.8,1620.6,1.2344]
[1744265675872,10.21186,1620.8,1620.6,1.23445]
[1744265676172,1.5967,1620.7,1620.6,2.81575]
[1744265676576,9.6362162,1620.7,1620.6,2.81575]
[1744265679076,10.8705962,1620.7,1620.6,2.81575]
[1744265679271,11.1619162,1620.7,1620.6,2.81575]
[1744265680474,12.3962962,1620.7,1620.6,1.23445]
[1744265680672,1.23445,1620.6,1620.5,1.0999]
[1744265680875,2.76015,1620.6,1620.4,2.88565]
[1744265681076,3.84215,1620.6,1620.5,1.23453]
[1744265681376,2.31645,1620.6,1620.5,1.23453]
[1744265682076,2.31651,1620.6,1620.4,2.88565]
[1744265682377,2.31651,1620.6,1620.5,1.23453]
[1744265682975,1.23468,1620.3,1620.2,0.00925783]
[1744265683678,3.44278,1620.3,1620.2,0.00925783]
[1744265684585,2.29118,1620.3,1620.2,0.00925783]
[1744265684982,2.29118,1620.3,1620.2,1.24401783]
[1744265685585,2.29118,1620.3,1620.2,2.85431783]
[1744265685886,5.41689783,1620.4,1620.3,1.23468]
[1744265686091,4.18225783,1620.4,1620.3,2.84498]
[1744265686392,4.18225783,1620.4,1620.3,5.12898]
[1744265686991,0.00925783,1620.4,1620.3,5.12898]
[1744265687792,1.24385783,1620.4,1620.3,3.8943]
[1744265688693,1.24385783,1620.4,1620.3,8.8943]
[1744265689195,1.24385783,1620.4,1620.3,10.12898]
[1744265689679,0.00925783,1620.4,1620.3,10.12898]
[1744265690593,1.24385783,1620.4,1620.3,10.12898]
[1744265692595,0.00925783,1620.4,1620.3,10.12898]
[1744265693394,1.24385783,1620.4,1620.3,10.12898]
[1744265693697,2.78835783,1620.4,1620.3,10.12898]
[1744265694590,2.78835783,1620.4,1620.3,8.8943]
[1744265694892,3.94835783,1620.4,1620.3,5.0]
[1744265695090,2.78835783,1620.4,1620.3,5.0]
[1744265695494,1.23468,1620.3,1620.2,1.24395783]
[1744265695695,7.07138,1620.3,1620.2,3.41245783]
[1744265695995,5.8367,1620.3,1620.2,3.41245783]
[1744265696696,4.173,1620.3,1620.2,3.41245783]
[1744265696898,4.173,1620.3,1620.2,4.96705783]
[1744265697097,5.40768,1620.3,1620.2,4.96705783]
[1744265697297,6.98758,1620.3,1620.2,4.96705783]
[1744265697898,6.98758,1620.3,1620.2,0.00925783]
[1744265698093,11.34568,1620.3,1620.2,0.00925783]
[1744265698894,16.34568,1620.3,1620.2,0.00925783]
[1744265699793,11.34568,1620.3,1620.2,0.00925783]
[1744265700300,16.34568,1620.3,1620.2,0.00925783]
[1744265700700,11.34568,1620.3,1620.2,0.00925783]
[1744265702201,1.23498,1619.9,1619.8,2.2504]
[1744265702398,5.40798,1619.9,1619.8,2.2504]
[1744265702789,8.21838,1619.9,1619.8,2.2504]
[1744265702994,4.04538,1619.9,1619.8,1.1684]
[1744265703804,1.23506,1619.8,1619.7,0.00925783]
[1744265704102,10.26876,1619.8,1619.7,0.00925783]
[1744265704300,15.26876,1619.8,1619.7,0.00925783]
[1744265705604,10.26876,1619.8,1619.7,0.00925783]
[1744265705796,7.3808,1619.8,1619.7,1.24439783]
[1744265705996,8.61586,1619.8,1619.7,0.00925783]
[1744265706197,10.22796,1619.8,1619.7,2.74975783]
[1744265706399,10.22796,1619.8,1619.7,1.17845783]
[1744265708601,1.23536,1619.5,1619.3,1.2354]
[1744265708800,1.23536,1619.5,1619.4,1.23537]
[1744265709003,4.174,1619.5,1619.4,1.23537]
[1744265709202,4.174,1619.5,1619.4,2.81427]
[1744265710112,5.40929,1619.5,1619.4,2.81427]
[1744265710906,4.174,1619.5,1619.4,2.81427]
[1744265712800,0.00925783,1619.6,1619.5,1.23529]
[1744265713406,0.00925783,1619.6,1619.5,9.44309]
[1744265713810,0.00925783,1619.6,1619.5,11.08939]
[1744265714807,0.00925783,1619.6,1619.5,16.08939]
[1744265715213,0.00925783,1619.6,1619.5,11.08939]
[1744265715811,0.00925783,1619.6,1619.5,16.08939]
[1744265716713,4.174,1620.0,1619.9,1.23498]
[1744265717409,14.95682254,1620.2,1620.0,1.23485]
[1744265717614,12.17931254,1620.2,1620.1,1.23483]
[1744265718012,12.18857037,1620.2,1620.1,1.23483]
[1744265718311,1.23483,1620.1,1620.0,2.89379]
[1744265718511,1.5707,1620.1,1620.0,2.89379]
[1744265718714,2.80553,1620.1,1620.0,2.89379]
[1744265719016,1.23491,1620.0,1619.9,3.52203]
[1744265719321,1.23498,1619.9,1619.8,2.80943]
[1744265719510,1.5707,1620.0,1619.8,2.80943]
[1744265719714,2.7228,1620.0,1619.8,1.5744]
[1744265719909,3.95777,1620.0,1619.8,2.8094]
[1744265720111,1.5707,1619.9,1619.8,1.5744]
[1744265720310,1.23514,1619.7,1619.6,2.80957]
[1744265720616,1.23521,1619.6,1619.4,5.996]
[1744265720819,1.23529,1619.5,1619.4,1.23534]
[1744265721020,7.26075,1619.8,1619.3,3.8404719]
[1744265721021,4.173,1619.8,1619.3,6.9290819]
[1744265721211,4.173,1619.8,1619.7,1.23514]
[1744265722020,4.173,1619.8,1619.7,3.94264]
[1744265724017,7.03166,1619.8,1619.7,1.092]
[1744265724414,1.23514,1619.7,1619.6,2.7256]
[1744265724621,1.23521,1619.6,1619.5,2.37873]
[1744265724919,2.7901,1619.7,1619.5,2.37872]
[1744265725119,2.7901,1619.7,1619.5,1.1435]
[1744265725315,1.5549,1619.7,1619.6,1.23521]
[1744265725513,5.4081,1619.8,1619.6,1.23521]
[1744265725719,4.173,1619.8,1619.7,1.23514]
[1744265725925,4.173,1619.8,1619.7,2.31464]
[1744265725926,5.40806,1619.8,1619.7,2.31464]
[1744265726125,1.23514,1619.7,1619.6,2.81886]
[1744265726417,1.5549,1619.7,1619.6,2.81886]
[1744265726615,2.79004,1619.7,1619.6,2.81886]
[1744265727017,2.79004,1619.7,1619.6,1.5837]
[1744265727321,2.79004,1619.7,1619.6,2.81891]
[1744265727709,1.5549,1619.7,1619.6,2.81891]
[1744265728118,1.5549,1619.7,1619.6,1.23521]
[1744265728416,4.173,1619.8,1619.7,1.23514]
[1744265730112,4.173,1619.8,1619.6,2.91066]
[1744265730314,2.81644,1619.7,1619.6,2.91066]
[1744265730724,2.81644,1619.7,1619.5,2.223]
[1744265730920,2.33314,1619.7,1619.5,3.909]
[1744265731224,6.95456,1619.8,1619.7,1.23514]
[1744265731723,5.7195,1619.8,1619.7,1.23514]
[1744265733329,4.173,1619.8,1619.7,1.23514]
[1744265733826,4.173,1619.8,1619.7,2.90274]
[1744265735427,4.79751254,1619.9,1619.8,1.23506]
[1744265735722,1.36836556,1619.9,1619.8,12.44116]
[1744265735931,7.3685062,1620.1,1619.8,22.2021]
[1744265736228,1.53e-06,1620.1,1620.0,4.44271]
[1744265736525,1.53e-06,1620.1,1620.0,6.11031]
[1744265736826,1.53e-06,1620.1,1620.0,51.91031]
[1744265737225,1.53e-06,1620.1,1620.0,46.91031]
[1744265738123,1.53e-06,1620.1,1620.0,51.91031]
[1744265739331,1.53e-06,1620.1,1620.0,48.70251]
[1744265739931,1.638,1620.1,1620.0,67.17714443]
[1744265740333,6.08063,1620.1,1620.0,23.47463443]
[1744265740629,11.36833,1620.1,1620.0,23.47463443]
[1744265740832,10.1335,1620.1,1620.0,24.70954443]
[1744265741132,10.1335,1620.1,1620.0,26.33354443]
[1744265741325,11.36833,1620.1,1620.0,23.47463443]
[1744265741525,8.16053,1620.1,1620.0,18.47463443]
[1744265744033,6.9257,1620.1,1620.0,19.70954443]
[1744265744233,6.9257,1620.1,1620.0,1.23491]
[1744265744433,6.9257,1620.1,1620.0,2.82051]
[1744265744634,8.16053,1620.1,1620.0,2.82051]
[1744265745332,1.23491,1620.0,1619.9,1.23493]
[1744265745531,2.83121,1620.0,1619.9,1.23493]
[1744265745929,1.5963,1620.0,1619.9,1.23493]
[1744265746531,5.2877,1620.1,1620.0,1.23491]
[1744265746723,6.9571,1620.1,1620.0,1.23491]
[1744265747336,6.9571,1620.1,1620.0,2.33961]
[1744265747530,8.19193,1620.1,1620.0,1.1047]
[1744265747835,1.23491,1620.0,1619.9,1.5763]
[1744265748036,2.90431,1620.0,1619.9,1.5763]
[1744265748237,1.6694,1620.0,1619.9,2.81123]
[1744265748636,2.90431,1620.0,1619.9,7.81123]
[1744265748827,1.6694,1620.0,1619.9,7.81123]
[1744265749436,2.90431,1620.0,1619.9,7.81123]
[1744265750740,1.6694,1620.0,1619.9,7.81123]
[1744265750944,2.90431,1620.0,1619.9,7.81123]
[1744265751141,2.90431,1620.0,1619.9,6.5763]
[1744265751337,2.90431,1620.0,1619.9,5.0]
[1744265751735,1.6694,1620.0,1619.9,6.23498]
[1744265751936,1.6694,1620.0,1619.9,7.86988]
[1744265752140,1.6694,1620.0,1619.9,2.86988]
[1744265752342,1.6694,1620.0,1619.9,3.92648]
[1744265753337,1.12165783,1620.2,1619.9,2.6915]
[1744265753544,2.35641783,1620.2,1620.1,1.23483]
[1744265753739,1.23483,1620.1,1620.0,1.23488]
[1744265754044,2.7321,1620.1,1620.0,1.23488]
[1744265754342,1.12165783,1620.2,1620.1,1.23483]
[1744265754734,0.00925783,1620.2,1620.1,2.80933]
[1744265754934,0.00925783,1620.2,1620.1,3.92403]
[1744265755341,0.00925783,1620.2,1620.1,8.92403]
[1744265756940,0.00925783,1620.2,1620.1,7.80933]
[1744265757143,1.60985783,1620.2,1620.1,7.80933]
[1744265757538,2.84461783,1620.2,1620.1,7.80933]
[1744265757843,2.84461783,1620.2,1620.1,6.23483]
[1744265758734,2.84461783,1620.2,1620.1,1.23483]
[1744265758945,1.60985783,1620.2,1620.0,5.996]
[1744265759243,3.85863,1620.1,1619.9,1.5726]
[1744265759445,2.658,1620.0,1619.9,2.80758]
[1744265760237,2.658,1620.0,1619.9,7.80758]
[1744265760436,1.0753,1620.1,1620.0,1.23491]
[1744265760637,2.6238,1620.1,1620.0,2.80751]
[1744265761445,1.0753,1620.1,1620.0,2.80751]
[1744265761646,4.18125783,1620.2,1620.1,1.23483]
[1744265761847,4.18125783,1620.2,1620.1,3.86683]
[1744265762040,0.00925783,1620.2,1620.1,3.86683]
[1744265762239,0.00925783,1620.2,1620.1,8.86683]
[1744265762545,1.69205783,1620.2,1620.1,8.86683]
[1744265764551,1.69205783,1620.2,1620.1,6.23483]
[1744265765048,2.92681783,1620.2,1620.1,7.88423]
[1744265765252,1.69205783,1620.2,1620.1,7.88423]
[1744265765449,2.92681783,1620.2,1620.1,6.23483]
[1744265765748,1.69205783,1620.2,1620.1,6.23483]
[1744265765950,2.92681783,1620.2,1620.1,6.23483]
[1744265766152,1.69205783,1620.2,1620.1,7.88423]
[1744265766454,0.00925783,1620.2,1620.1,7.88423]
[1744265766643,0.00925783,1620.2,1620.1,8.93153]
[1744265767145,1.61935783,1620.2,1620.1,8.93153]
[1744265768644,0.00925783,1620.2,1620.1,8.93153]
[1744265768847,0.00925783,1620.2,1620.1,10.03713]
[1744265770346,0.00925783,1620.2,1620.1,7.6967]
[1744265770551,13.62381783,1620.2,1620.1,5.0]
[1744265771052,15.18121783,1620.2,1620.1,5.0]
[1744265771246,1.23483,1620.1,1620.0,1.23491]
[1744265771449,1.5574,1620.1,1620.0,2.90731]
[1744265771649,1.5574,1620.1,1619.8,1.0999]
[1744265771950,3.84559,1620.1,1619.9,2.90733]
[1744265772246,1.23491,1620.0,1619.9,2.90733]
[1744265772449,2.79231,1620.0,1619.8,1.0999]
[1744265772644,3.91767,1620.0,1619.8,1.0999]
[1744265772841,2.36027,1620.0,1619.9,1.23498]
[1744265773046,1.1253,1620.0,1619.9,1.23498]
[1744265773247,2.28819,1620.1,1620.0,1.23491]
[1744265773248,1.0533,1620.1,1620.0,1.23491]
[1744265773456,4.18125783,1620.2,1620.1,1.23483]
[1744265773753,5.10758509,1620.2,1620.1,4.05083]
[1744265773947,6.34234509,1620.2,1620.1,2.816]
[1744265774148,1.23491,1620.1,1619.8,3.2078]
[1744265774343,1.23491,1620.1,1619.9,4.05093]
[1744265774544,1.23491,1620.1,1620.0,1.6731]
[1744265775254,0.93558509,1620.2,1620.1,1.23483]
[1744265775655,0.93558509,1620.2,1620.1,4.01633]
[1744265776858,0.93558509,1620.2,1620.1,7.22413]
[1744265777158,2.17034509,1620.2,1620.1,7.22413]
[1744265777357,0.93558509,1620.2,1620.1,7.22413]
[1744265777959,0.00925783,1620.2,1620.1,7.22413]
[1744265779455,1.24401783,1620.2,1620.1,7.22413]
[1744265779662,1.24401783,1620.2,1620.1,1.6731]
[1744265779859,1.23483,1620.1,1620.0,7.6004]
[1744265780060,1.23483,1620.1,1620.0,5.996]
[1744265781963,1.23491,1620.0,1619.9,4.44277]
[1744265782263,2.29171,1620.0,1619.9,3.2078]
[1744265782462,1.23498,1619.9,1619.8,12.46655969]
[1744265782961,2.36228,1619.9,1619.8,12.46655969]
[1744265783554,3.93328,1619.9,1619.8,12.46655969]
[1744265785062,8.10428,1619.9,1619.8,9.62713969]
[1744265786964,1.23514,1619.7,1619.6,42.3601]
[1744265787161,1.23514,1619.7,1619.6,43.59531]
[1744265787661,2.31614,1619.7,1619.6,43.59531]
[1744265788159,1.081,1619.7,1619.6,43.59531]
[1744265788460,2.87151,1619.8,1619.7,1.23514]
[1744265788662,3.91451,1619.8,1619.7,1.5387]
[1744265789664,1.23514,1619.7,1619.6,42.03516]
[1744265789864,2.89554,1619.7,1619.6,43.57386]
[1744265790460,1.23514,1619.7,1619.6,43.57386]
[1744265790761,2.27811,1619.8,1619.7,1.23514]
[1744265790966,6.53334,1619.9,1619.8,1.23506]
[1744265791260,5.40598,1619.9,1619.8,1.23506]
[1744265791464,1.23498,1619.9,1619.8,1.23506]
[1744265791652,5.7908,1620.0,1619.6,42.03515]
[1744265791964,1.23506,1619.8,1619.7,2.76064]
[1744265792263,1.23506,1619.8,1619.7,3.85194]
[1744265792870,1.23506,1619.8,1619.7,1.5255]
[1744265793163,2.29696,1619.8,1619.7,1.5255]
[1744265793665,1.23514,1619.7,1619.6,43.14856]
[1744265793866,3.96534,1619.7,1619.6,43.14856]
[1744265794162,3.96534,1619.7,1619.6,49.67406]
[1744265794767,2.7302,1619.7,1619.6,49.67406]
[1744265794965,1.0491,1619.7,1619.6,49.67406]
[1744265795669,2.28424,1619.7,1619.6,49.67406]
[1744265795965,3.91564,1619.7,1619.6,47.3255]
[1744265796668,3.91564,1619.7,1619.6,48.56071]
[1744265796862,3.91564,1619.7,1619.6,45.8]
[1744265797066,7.12344,1619.7,1619.6,5.0]
[1744265797672,1.23529,1619.5,1619.4,3.84941]
[1744265797866,1.23537,1619.4,1619.3,1.2415719]
[1744265798174,1.0596,1619.4,1619.3,2.8098719]
[1744265798471,4.172,1619.5,1619.4,1.23537]
[1744265798671,4.172,1619.5,1619.4,3.88237]
[1744265798870,2.84743,1619.6,1619.4,2.647]
[1744265799172,6.46678,1619.7,1619.6,1.23521]
[1744265799371,1.23521,1619.6,1619.5,3.87773]
[1744265799573,8.079,1619.7,1619.6,1.23521]
[1744265800373,1.23521,1619.6,1619.5,1.0742]
[1744265800568,2.87721,1619.6,1619.5,1.0742]
[1744265801174,1.642,1619.6,1619.3,4.4493619]
[1744265801379,2.7258,1619.5,1619.4,1.23537]
[1744265802073,2.7258,1619.5,1619.4,6.23537]
[1744265802279,3.96109,1619.5,1619.4,5.0]
[1744265803372,1.23537,1619.4,1619.3,0.0061719]
[1744265803671,11.37967,1619.4,1619.3,0.0061719]
[1744265804274,8.17187,1619.4,1619.3,0.0061719]
[1744265808579,13.17187,1619.4,1619.3,0.0061719]
[1744265808881,13.17187,1619.4,1618.9,9.62713969]
[1744265808882,1.23567,1619.0,1618.9,9.62713969]
[1744265809066,1.2359,1618.7,1618.6,9.62713969]
[1744265809272,5.4089,1618.7,1618.6,9.62713969]
[1744265809772,6.9769,1618.7,1618.6,9.62713969]
[1744265812471,4.173,1618.7,1618.6,10.86311969]
[1744265812675,5.4089,1618.7,1618.6,13.03171969]
[1744265812980,7.0423,1618.7,1618.6,13.03171969]
[1744265813176,4.173,1618.7,1618.6,13.03171969]
[1744265813682,4.173,1618.7,1618.6,14.61761969]
[1744265814079,4.173,1618.7,1618.6,13.38163969]
[1744265814685,4.173,1618.7,1618.6,12.30443969]
[1744265814882,5.8064,1618.7,1618.6,12.30443969]
[1744265815385,5.8064,1618.7,1618.6,2.6773]
[1744265815986,4.173,1618.7,1618.6,2.6773]
[1744265816177,5.4089,1618.7,1618.6,3.91328]
[1744265816984,4.173,1618.7,1618.6,3.91328]
[1744265817190,0.00925783,1618.8,1618.6,2.6773]
[1744265817379,0.00925783,1618.8,1618.7,2.6956]
[1744265817880,0.00925783,1618.8,1618.7,43.4956]
[1744265819689,0.00925783,1618.8,1618.7,46.7034]
[1744265819986,0.00925783,1618.8,1618.7,51.7034]
[1744265820385,0.00925783,1618.8,1618.7,56.7034]
[1744265820586,0.00925783,1618.8,1618.7,51.7034]
[1744265822093,0.00925783,1618.8,1618.7,52.9393]
[1744265823188,0.00925783,1618.8,1618.7,57.9393]
[1744265823387,0.00925783,1618.8,1618.7,62.1133]
[1744265825994,0.00925783,1618.8,1618.7,68.1093]
[1744265827192,0.00925783,1618.8,1618.7,63.1093]
[1744265828893,0.00925783,1618.8,1618.7,68.1093]
[1744265830293,0.00925783,1618.8,1618.7,63.1093]
[1744265831294,0.00925783,1618.8,1618.7,57.1133]
[1744265832094,0.00925783,1618.8,1618.7,51.8584]
[1744265832291,1.68355783,1618.8,1618.7,51.8584]
[1744265833783,2.91937783,1618.8,1618.7,51.8584]
[1744265833993,2.91937783,1618.8,1618.7,45.8]
[1744265834195,2.91937783,1618.8,1618.7,40.8]
[1744265834492,6.68355783,1618.8,1618.5,0.00925783]
[1744265834701,1.23598,1618.6,1618.5,0.00925783]
[1744265835099,7.87708,1618.6,1618.5,0.00925783]
[1744265835797,8.374815,1618.6,1618.5,0.00925783]
[1744265835997,11.582615,1618.6,1618.5,0.00925783]
[1744265836199,1.23621,1618.3,1618.2,9.62713969]
[1744265836387,8.61701,1618.3,1618.2,9.62713969]
[1744265836592,13.61701,1618.3,1618.2,9.62713969]
[1744265836991,14.68941,1618.3,1618.2,9.62713969]
[1744265837689,9.68941,1618.3,1618.2,9.62713969]
[1744265837887,8.4532,1618.3,1618.2,10.86341969]
[1744265838091,1.6411,1618.4,1618.3,1.23621]
[1744265838292,2.3084,1618.6,1618.5,1.23605]
[1744265838495,1.23606,1618.5,1618.4,1.23611]
[1744265838690,2.89256,1618.5,1618.3,2.79746]
[1744265838998,2.89256,1618.5,1618.4,1.23613]
[1744265839199,2.89256,1618.5,1618.3,2.79744]
[1744265839591,1.6565,1618.4,1618.3,2.79744]
[1744265841197,1.6565,1618.4,1618.3,1.23614]
[1744265841406,2.89263,1618.4,1618.2,6.00143]
[1744265841593,2.27271,1618.3,1618.2,1.5574]
[1744265841898,2.6265,1618.3,1618.2,1.23628]
[1744265842201,2.6265,1618.3,1618.2,47.03628]
[1744265842592,2.6265,1618.3,1618.2,48.59368]
[1744265843801,1.59,1618.3,1618.2,48.59368]
[1744265843996,1.23614,1618.4,1618.3,1.23621]
[1744265844305,2.85394,1618.4,1618.3,2.82181]
[1744265845505,2.85394,1618.4,1618.3,1.5856]
[1744265845804,2.85399,1618.4,1618.2,45.24402]
[1744265846007,1.5973,1618.3,1618.2,45.24402]
[1744265846206,6.4683,1618.5,1618.4,1.23613]
[1744265846505,8.0656,1618.5,1618.4,1.23613]
[1744265848003,6.8295,1618.5,1618.4,1.23613]
[1744265848799,2.6555,1618.5,1618.4,1.23613]
[1744265849296,2.6555,1618.5,1618.4,9.44393]
[1744265849496,2.6555,1618.5,1618.4,6.23613]
[1744265851507,3.21705783,1618.8,1618.4,8.2078]
[1744265851799,3.71855783,1618.8,1618.7,1.2359]
[1744265852390,3.71855783,1618.8,1618.7,2.9055]
[1744265855305,7.83e-06,1618.8,1618.7,12.0795]
[1744265855611,7.83e-06,1618.8,1618.7,13.1493]
[1744265857408,7.83e-06,1618.8,1618.7,18.1493]
[1744265862812,7.83e-06,1618.8,1618.7,13.1493]
[1744265863520,7.83e-06,1618.8,1618.7,8.9753]
[1744265867515,1.64210783,1618.8,1618.7,8.9753]
[1744265868111,7.83e-06,1618.8,1618.7,8.9753]
[1744265870715,7.83e-06,1618.8,1618.7,12.1831]
[1744265875421,7.83e-06,1618.8,1618.7,17.1831]
[1744265878032,7.83e-06,1618.8,1618.7,12.1831]
[1744265878425,7.83e-06,1618.8,1618.7,17.1831]
[1744265879430,5.82907677,1619.3,1619.2,1.23552]
[1744265879724,7.42277677,1619.3,1619.2,4.44332]
[1744265879925,2.6168,1619.3,1619.2,4.44332]
[1744265880414,7.83e-06,1619.4,1619.3,1.23544]
[1744265880619,7.83e-06,1619.4,1619.3,7.00124]
[1744265880819,7.83e-06,1619.4,1619.3,47.80124]
[1744265881718,7.83e-06,1619.4,1619.3,52.80124]
[1744265882115,7.83e-06,1619.4,1619.3,47.80124]
[1744265882321,7.83e-06,1619.4,1619.3,52.80124]
[1744265884232,7.83e-06,1619.4,1619.3,53.27252766]
[1744265887626,7.83e-06,1619.4,1619.3,58.27252766]
[1744265888134,7.83e-06,1619.4,1619.3,53.27252766]
[1744265889126,7.83e-06,1619.4,1619.3,47.03544]
[1744265889327,5.00000783,1619.4,1619.3,47.03544]
[1744265890235,7.83e-06,1619.4,1619.3,47.03544]
[1744265890426,1.55760783,1619.4,1619.3,47.03544]
[1744265891030,6.55760783,1619.4,1619.3,47.03544]
[1744265893125,1.55760783,1619.4,1619.3,47.03544]
[1744265893323,1.55760783,1619.4,1619.3,49.78014]
[1744265893522,7.83e-06,1619.4,1619.3,55.77614]
[1744265895730,7.83e-06,1619.4,1619.3,60.77614]
[1744265899035,7.83e-06,1619.4,1619.3,55.77614]
[1744265899441,7.83e-06,1619.4,1619.3,57.20144]
[1744265900237,7.83e-06,1619.4,1619.3,58.82604]
[1744265901339,7.83e-06,1619.4,1619.3,62.03384]
[1744265902533,7.83e-06,1619.4,1619.3,60.40924]
[1744265906543,7.83e-06,1619.4,1619.3,61.48274]
[1744265907037,4.80597677,1620.2,1620.1,1.23483]
[1744265907438,9.80597677,1620.2,1620.1,1.23483]
[1744265908541,12.45437677,1620.2,1620.1,1.23483]
[1744265908837,12.45437677,1620.2,1620.1,6.23483]
[1744265909045,13.68913677,1620.2,1620.1,5.0]
[1744265909339,13.68913677,1620.2,1620.1,11.23483]
[1744265909537,13.68913677,1620.2,1620.1,10.0]
[1744265909738,21.06593677,1620.2,1620.1,10.0]
[1744265910042,21.06593677,1620.2,1620.1,5.0]
[1744265910443,16.62337677,1620.2,1620.1,6.23483]
[1744265912337,17.69817677,1620.2,1620.1,6.23483]
[1744265912543,12.8922,1620.2,1620.1,6.23483]
[1744265912938,16.1,1620.2,1620.1,6.23483]
[1744265913237,17.33476,1620.2,1620.1,6.23483]
[1744265913838,23.16876,1620.2,1620.1,6.23483]
[1744265914045,23.16876,1620.2,1620.1,5.0]
[1744265916250,19.96096,1620.2,1620.1,5.0]
[1744265918648,23.16876,1620.2,1620.1,5.0]
[1744265919350,19.96096,1620.2,1620.1,5.0]
[1744265920147,23.16876,1620.2,1620.1,5.0]
[1744265921146,20.08253677,1620.2,1620.1,5.0]
[1744265921348,4.80597677,1620.2,1620.1,6.23483]
[1744265921542,8.73327677,1620.2,1620.1,6.23483]
[1744265921742,8.73327677,1620.2,1620.1,11.23483]
[1744265922962,6.48937677,1620.2,1620.1,11.23483]
[1744265923258,4.80597677,1620.2,1620.1,16.55113]
[1744265923957,6.43367677,1620.2,1620.1,16.55113]
[1744265925964,1.6277,1620.2,1620.1,16.55113]
[1744265926164,1.6277,1620.2,1620.1,18.10663]
[1744265928162,4.8152346,1620.3,1620.2,1.23476]
[1744265928362,4.8152346,1620.3,1620.2,2.87216]
[1744265928864,4.8152346,1620.3,1620.2,43.67216]
[1744265929064,4.8152346,1620.3,1620.2,48.67216]
[1744265929565,7.4770346,1620.3,1620.2,48.67216]
[1744265929949,7.4770346,1620.3,1620.2,53.67216]
[1744265933567,8.7117146,1620.3,1620.2,52.03476]
[1744265933963,8.7117146,1620.3,1620.2,10.0]
[1744265934361,7.4770346,1620.3,1620.2,11.23476]
[1744265935071,2.67105783,1620.3,1620.2,10.00426]
[1744265935864,0.00925783,1620.3,1620.2,10.00426]
[1744265936064,0.00925783,1620.3,1620.2,15.00426]
[1744265937966,0.00925783,1620.3,1620.2,20.00426]
[1744265938268,0.00925783,1620.3,1620.2,26.00026]
[1744265938663,0.00925783,1620.3,1620.2,66.80026]
[1744265939771,0.00925783,1620.3,1620.2,61.80026]
[1744265940168,0.00925783,1620.3,1620.2,66.80026]
[1744265941270,0.00925783,1620.3,1620.2,61.80026]
[1744265941471,0.00925783,1620.3,1620.2,66.80026]
[1744265944970,0.00925783,1620.3,1620.2,61.80026]
[1744265947378,2.07725783,1620.3,1620.2,61.80026]
[1744265947677,2.07725783,1620.3,1620.2,58.03076]
[1744265949178,2.07725783,1620.3,1620.2,52.03476]
[1744265951579,7.07725783,1620.3,1620.2,52.03476]
[1744265951877,8.31193783,1620.3,1620.2,10.0]
[1744265952072,9.87473783,1620.3,1620.2,10.0]
[1744265952277,17.24953783,1620.3,1620.2,10.0]
[1744265952476,17.24953783,1620.3,1620.2,5.0]
[1744265952666,16.01485783,1620.3,1620.2,6.23476]
[1744265952871,12.80705783,1620.3,1620.2,6.23476]
[1744265953275,2.61065783,1620.3,1620.2,6.23476]
[1744265953477,1.57205783,1620.3,1620.2,6.23476]
[1744265953677,1.57205783,1620.3,1620.2,7.78376]
[1744265954084,1.57205783,1620.3,1620.2,12.78376]
[1744265954979,0.00925783,1620.3,1620.2,12.78376]
[1744265957283,0.00925783,1620.3,1620.2,15.99156]
[1744265958482,0.00925783,1620.3,1620.2,56.79156]
[1744265960179,0.00925783,1620.3,1620.2,62.78756]
[1744265963481,3.8098,1620.5,1620.4,1.2346]
[1744265963681,3.8098,1620.5,1620.4,4.4424]
[1744265963875,1.6518,1620.5,1620.4,4.4424]
[1744265964078,1.6518,1620.5,1620.4,6.6559]
[1744265964379,1.6518,1620.5,1620.4,7.3589]
[1744265964587,1.46524423,1620.5,1620.4,6.2346]
[1744265964984,1.46524423,1620.5,1620.4,11.2346]
[1744265970786,6.30253007,1620.5,1620.4,11.2346]
[1744265973992,6.30253007,1620.5,1620.4,52.0346]